bitfinex/quotes_BTCUSD_20240715
["timestamp","ask_amount","ask_price","bid_price","bid_amount"]
[1721022607913,0.29,63055.0,63054.0,0.4863143]
[1721022608133,0.29,63055.0,63046.0,0.000913]
[1721022608134,0.29,63062.0,63061.0,0.5]
[1721022608341,0.12,63062.0,63061.0,0.5]
[1721022608593,0.1,63063.0,63061.0,0.5]
[1721022608802,0.142713,63064.0,63061.0,0.5]
[1721022608803,0.0826,63064.0,63061.0,0.5]
[1721022609014,0.0615,63063.0,63062.0,0.142716]
[1721022609179,0.0615,63063.0,63062.0,0.428148]
[1721022609380,0.0615,63063.0,63062.0,0.745298]
[1721022610204,0.0615,63063.0,63062.0,0.31715]
[1721022610407,0.0625,63063.0,63062.0,0.33115]
[1721022611448,0.0635,63063.0,63062.0,0.33115]
[1721022613790,0.901642,63063.0,63062.0,0.33115]
[1721022614017,0.901642,63063.0,63062.0,0.09795]
[1721022614018,1.38707,63063.0,63062.0,0.09795]
[1721022614224,0.716214,63063.0,63062.0,0.09795]
[1721022614353,0.5735,63063.0,63062.0,0.09795]
[1721022614555,0.1635,63063.0,63062.0,0.09795]
[1721022614795,0.2835,63063.0,63062.0,0.09795]
[1721022615027,0.2825,63063.0,63062.0,0.09795]
[1721022615339,0.425214,63063.0,63062.0,0.09795]
[1721022615544,0.710642,63063.0,63062.0,0.09795]
[1721022615747,0.2815,63063.0,63062.0,0.08395]
[1721022616142,0.2815,63063.0,63062.0,0.08495]
[1721022616763,0.714214,63063.0,63062.0,0.08495]
[1721022616963,1.28507,63063.0,63062.0,0.08495]
[1721022617198,1.38507,63063.0,63062.0,0.08495]
[1721022617612,1.670498,63063.0,63062.0,0.08495]
[1721022618185,1.670498,63063.0,63046.0,0.000913]
[1721022618186,0.27015,63047.0,63046.0,0.000913]
[1721022618400,0.12,63044.0,63039.0,0.000913]
[1721022618532,0.292901,63047.0,63039.0,0.500913]
[1721022618533,0.12,63041.0,63039.0,0.500913]
[1721022618893,0.29306353,63043.0,63033.0,0.5]
[1721022618894,0.0074,63035.0,63033.0,0.5]
[1721022619037,0.0074,63035.0,63034.0,0.14278]
[1721022619379,0.0074,63035.0,63033.0,0.5]
[1721022619589,0.0074,63035.0,63027.0,0.28559]
[1721022619590,0.12,63034.0,63027.0,0.142795]
[1721022619793,0.12,63034.0,63025.0,0.142798]
[1721022619997,0.0074,63035.0,63025.0,0.142798]
[1721022619998,0.12,63032.0,63025.0,0.142798]
[1721022620357,0.0084,63035.0,63025.0,0.142798]
[1721022620358,0.29,63029.0,63025.0,0.142798]
[1721022620536,0.29,63029.0,63014.0,0.4036304]
[1721022620537,0.29,63029.0,63018.0,0.063603]
[1721022620741,0.2898092,63023.0,63014.0,0.3278304]
[1721022621003,0.29,63020.0,63019.0,0.5]
[1721022621201,0.0615,63025.0,63019.0,0.5]
[1721022621202,0.0615,63025.0,63019.0,0.642813]
[1721022621402,0.00306353,63024.0,63019.0,0.5]
[1721022621986,0.001,63023.0,63020.0,0.142811]
[1721022622164,0.00306353,63022.0,63019.0,0.5]
[1721022622504,0.00306353,63024.0,63019.0,0.5]
[1721022622712,0.00306353,63024.0,63019.0,0.513]
[1721022622847,0.00406353,63024.0,63019.0,0.513]
[1721022623246,0.06,63023.0,63019.0,0.513]
[1721022623465,0.001,63023.0,63020.0,0.012]
[1721022623669,0.12,63021.0,63020.0,0.012]
[1721022623872,0.12,63020.0,63019.0,0.013]
[1721022624073,0.12,63020.0,63019.0,0.012]
[1721022624276,0.12,63021.0,63019.0,0.012]
[1721022624506,0.29,63023.0,63019.0,0.012]
[1721022624507,0.00406353,63022.0,63020.0,0.08105238]
[1721022624756,0.00406353,63022.0,63021.0,1.214046]
[1721022624950,0.001,63024.0,63023.0,0.142805]
[1721022625152,0.001,63024.0,63023.0,0.714025]
[1721022625348,0.01661219,63025.0,63024.0,0.428407]
[1721022625572,0.01661219,63025.0,63024.0,0.714012]
[1721022625919,0.01661219,63025.0,63024.0,0.713012]
[1721022626093,0.01661219,63025.0,63024.0,0.998617]
[1721022627000,0.01661219,63025.0,63024.0,0.997617]
[1721022627634,0.3522,63037.0,63024.0,0.997617]
[1721022627635,0.3522,63037.0,63034.0,0.285559]
[1721022627865,0.3522,63037.0,63036.0,0.142775]
[1721022628083,0.1622,63037.0,63036.0,0.142775]
[1721022628194,0.1622,63037.0,63031.0,0.78557]
[1721022628195,0.01660985,63036.0,63031.0,0.78557]
[1721022628397,0.01660985,63036.0,63034.0,0.142779]
[1721022628660,0.01660985,63036.0,63035.0,0.428332]
[1721022628858,0.01660985,63036.0,63035.0,0.713887]
[1721022629261,0.01660985,63036.0,63035.0,0.999442]
[1721022629831,0.01160985,63036.0,63035.0,0.999442]
[1721022629999,0.29,63044.0,63043.0,0.142759]
[1721022630445,0.2324,63044.0,63043.0,0.142759]
[1721022630650,0.2324,63044.0,63041.0,0.142763]
[1721022630837,0.12,63043.0,63041.0,0.142763]
[1721022631432,0.2324,63044.0,63043.0,0.003]
[1721022631824,0.2324,63044.0,63043.0,0.01298875]
[1721022632025,0.2324,63044.0,63043.0,0.00998875]
[1721022632211,0.2324,63044.0,63042.0,0.142761]
[1721022632423,0.2324,63044.0,63043.0,0.01396268]
[1721022633031,0.2324,63044.0,63043.0,0.00996268]
[1721022633266,0.2324,63044.0,63043.0,0.005]
[1721022633435,0.2324,63044.0,63043.0,0.01496254]
[1721022633679,0.2324,63044.0,63043.0,0.15772154]
[1721022633904,0.485461,63056.0,63043.0,0.15772154]
[1721022633905,0.2324,63050.0,63043.0,0.01496254]
[1721022634107,0.1,63065.0,63054.0,0.142734]
[1721022634108,0.01012211,63057.0,63054.0,0.142734]
[1721022634486,0.0616,63060.0,63054.0,0.15267318]
[1721022634918,0.12,63059.0,63054.0,0.00993918]
[1721022635277,0.13660823,63055.0,63049.0,0.142746]
[1721022635476,0.13660823,63055.0,63054.0,0.00992088]
[1721022635477,0.01660823,63055.0,63054.0,0.00992088]
[1721022635726,0.01660823,63055.0,63050.0,0.142743]
[1721022635922,0.01660823,63055.0,63054.0,0.00992088]
[1721022636157,0.01660823,63055.0,63054.0,0.428203]
[1721022636358,0.01660823,63055.0,63054.0,0.44412424]
[1721022636565,0.01660823,63055.0,63054.0,0.43812424]
[1721022637020,0.01660823,63055.0,63054.0,0.44412424]
[1721022637220,0.01660823,63055.0,63054.0,0.43812424]
[1721022637381,0.01660823,63055.0,63054.0,0.44612424]
[1721022637586,0.13660823,63055.0,63054.0,0.01792124]
[1721022638006,0.12,63053.0,63045.0,0.142753]
[1721022638205,0.12,63053.0,63046.0,0.142752]
[1721022638411,0.01660823,63055.0,63054.0,0.428203]
[1721022639034,0.01660823,63055.0,63054.0,0.4381203]
[1721022639235,10.01660823,63055.0,63054.0,0.7235893]
[1721022639441,10.0,63055.0,63054.0,1.1380583]
[1721022639637,10.0,63055.0,63054.0,1.8732178]
[1721022639865,10.0,63055.0,63054.0,2.1651351]
[1721022640047,10.0,63055.0,63054.0,2.6306041]
[1721022640422,10.0,63055.0,63054.0,2.92082327]
[1721022640626,10.0,63055.0,63054.0,2.7451351]
[1721022640824,10.0,63055.0,63054.0,2.0531351]
[1721022641033,10.0,63055.0,63054.0,2.7531351]
[1721022641233,10.0,63055.0,63054.0,2.7451351]
[1721022641429,10.0,63055.0,63054.0,2.0451351]
[1721022641706,10.0,63055.0,63054.0,2.2736661]
[1721022642344,10.0,63055.0,63054.0,2.4736661]
[1721022642589,10.0,63055.0,63054.0,2.7591351]
[1721022642800,10.0,63055.0,63054.0,2.7731351]
[1721022643226,10.0,63055.0,63054.0,2.75911521]
[1721022643395,10.0,63055.0,63054.0,2.77311521]
[1721022643806,10.0,63055.0,63054.0,2.41728481]
[1721022644007,10.0,63055.0,63054.0,2.43128481]
[1721022644307,10.0,63055.0,63054.0,1.83981581]
[1721022644506,10.0,63055.0,63054.0,2.02581581]
[1721022644954,10.0,63055.0,63054.0,2.15981581]
[1721022645124,10.0,63055.0,63054.0,2.03981581]
[1721022645299,10.0,63055.0,63054.0,2.15981581]
[1721022645499,10.0,63055.0,63054.0,2.43128481]
[1721022645703,10.0,63055.0,63054.0,2.44528481]
[1721022645902,9.998,63055.0,63054.0,2.44528481]
[1721022646252,9.998,63055.0,63054.0,2.43536322]
[1721022646636,9.998,63055.0,63054.0,2.44519887]
[1721022646939,9.998,63055.0,63054.0,2.43119887]
[1721022647376,9.998,63055.0,63054.0,2.43365778]
[1721022647574,9.998,63055.0,63054.0,2.31365778]
[1721022648065,9.998,63055.0,63054.0,2.32765778]
[1721022648470,9.998,63055.0,63054.0,2.31365778]
[1721022648631,9.998,63055.0,63054.0,2.44765778]
[1721022648833,9.998,63055.0,63054.0,2.31590456]
[1721022649775,9.998,63055.0,63054.0,2.37946656]
[1721022650038,9.998,63055.0,63054.0,2.69665656]
[1721022650244,9.998,63055.0,63054.0,2.57665656]
[1721022650398,9.998,63055.0,63054.0,2.69665656]
[1721022650593,9.998,63055.0,63054.0,2.74340943]
[1721022651502,9.998,63055.0,63054.0,2.69665656]
[1721022651819,9.998,63055.0,63054.0,3.35034468]
[1721022652024,9.998,63055.0,63054.0,3.56568438]
[1721022652223,9.998,63055.0,63054.0,2.79665656]
[1721022652472,9.998,63055.0,63054.0,2.99871094]
[1721022652766,9.998,63055.0,63054.0,2.79665656]
[1721022652941,9.998,63055.0,63054.0,2.92840654]
[1721022653142,9.998,63055.0,63054.0,2.91440653]
[1721022653343,9.998,63055.0,63054.0,2.8295373]
[1721022653522,9.998,63055.0,63054.0,2.79665656]
[1721022653724,9.998,63055.0,63054.0,2.8295373]
[1721022654145,9.998,63055.0,63054.0,2.8435373]
[1721022654346,9.998,63055.0,63054.0,2.79665656]
[1721022654529,9.998,63055.0,63054.0,2.69665656]
[1721022655148,9.998,63055.0,63054.0,2.68265656]
[1721022655350,9.998,63055.0,63054.0,2.66865656]
[1721022655550,9.998,63055.0,63054.0,2.68265656]
[1721022655750,9.998,63055.0,63054.0,2.69665656]
[1721022656878,9.998,63055.0,63054.0,2.68265656]
[1721022657264,9.998,63055.0,63054.0,2.69665656]
[1721022659356,9.998,63055.0,63054.0,2.69586414]
[1721022659557,9.998,63055.0,63054.0,0.64498814]
[1721022659780,9.998,63055.0,63054.0,0.35748456]
[1721022659953,9.998,63055.0,63054.0,0.34519]
[1721022659954,10.0627,63055.0,63054.0,0.34519]
[1721022660517,10.0627,63055.0,63054.0,0.33119]
[1721022660676,10.0627,63055.0,63054.0,0.31719]
[1721022660677,10.1827,63055.0,63054.0,0.31719]
[1721022660878,10.0627,63055.0,63054.0,0.33119]
[1721022661419,10.0627,63055.0,63054.0,0.31719]
[1721022661641,10.0627,63055.0,63054.0,0.32619]
[1721022662237,10.1827,63055.0,63054.0,0.34019]
[1721022662440,10.0627,63055.0,63054.0,0.32619]
[1721022662866,10.0627,63055.0,63054.0,0.33619]
[1721022663141,10.0627,63055.0,63054.0,0.32719]
[1721022663388,9.998,63055.0,63054.0,0.32719]
[1721022663548,9.998,63055.0,63054.0,0.33619]
[1721022663751,9.998,63055.0,63054.0,1.049862]
[1721022664112,9.998,63055.0,63054.0,0.77958993]
[1721022664326,9.998,63055.0,63054.0,0.77058993]
[1721022664528,9.998,63055.0,63054.0,0.755393]
[1721022664735,9.998,63055.0,63054.0,0.769393]
[1721022664935,9.998,63055.0,63054.0,0.78458993]
[1721022665180,9.998,63055.0,63054.0,0.77458993]
[1721022665618,9.998,63055.0,63054.0,0.78858993]
[1721022665992,9.998,63055.0,63054.0,1.07405893]
[1721022666672,9.998,63055.0,63054.0,0.78858993]
[1721022667430,9.998,63055.0,63054.0,0.969293]
[1721022667631,9.998,63055.0,63054.0,1.420231]
[1721022668029,9.998,63055.0,63054.0,1.421468]
[1721022668242,9.998,63055.0,63054.0,1.541468]
[1721022668608,9.998,63055.0,63054.0,1.527468]
[1721022668815,9.998,63055.0,63054.0,1.541468]
[1721022668984,9.998,63055.0,63054.0,1.421468]
[1721022669348,9.998,63055.0,63054.0,1.435468]
[1721022670159,9.998,63055.0,63054.0,1.149999]
[1721022670381,9.998,63055.0,63054.0,0.489161]
[1721022670700,9.998,63055.0,63054.0,0.987924]
[1721022670903,9.998,63055.0,63054.0,1.273393]
[1721022671502,10.062,63055.0,63054.0,0.346427]
[1721022671877,10.062,63055.0,63054.0,0.34519]
[1721022672242,10.182,63055.0,63054.0,0.34519]
[1721022672655,10.062,63055.0,63054.0,0.34519]
[1721022673082,10.182,63055.0,63054.0,0.34519]
[1721022673287,10.062,63055.0,63054.0,0.34519]
[1721022674164,10.182,63055.0,63054.0,0.34519]
[1721022674817,10.182,63055.0,63054.0,0.354392]
[1721022676670,10.324732,63055.0,63054.0,0.354392]
[1721022677448,10.182,63055.0,63054.0,0.354392]
[1721022677605,10.062,63055.0,63054.0,0.354392]
[1721022677811,10.19201811,63055.0,63054.0,0.354392]
[1721022680229,10.33475011,63055.0,63054.0,0.354392]
[1721022680827,10.19201811,63055.0,63054.0,0.354392]
[1721022681264,10.19182723,63055.0,63054.0,0.354392]
[1721022681449,10.33455923,63055.0,63054.0,0.354392]
[1721022682395,10.12782723,63055.0,63054.0,0.354392]
[1721022682604,10.00782723,63055.0,63054.0,0.354392]
[1721022682805,10.12782723,63055.0,63054.0,0.354392]
[1721022683159,10.27055923,63055.0,63054.0,0.354392]
[1721022684425,10.00782723,63055.0,63054.0,0.354392]
[1721022685649,10.12782723,63055.0,63054.0,0.354392]
[1721022686475,10.27055923,63055.0,63054.0,0.354392]
[1721022686652,10.55602423,63055.0,63054.0,0.354392]
[1721022686860,11.12695423,63055.0,63054.0,0.354392]
[1721022687071,11.28995423,63055.0,63054.0,0.354392]
[1721022687275,11.51478523,63055.0,63054.0,0.354392]
[1721022687481,11.39894784,63055.0,63054.0,0.354392]
[1721022687843,11.5514761,63055.0,63054.0,0.340392]
[1721022688251,11.6514761,63055.0,63054.0,0.24902544]
[1721022688501,11.6514761,63055.0,63054.0,0.20602217]
[1721022688715,11.6514761,63055.0,63054.0,0.014202]
[1721022688895,0.548278,63043.0,63042.0,0.000913]
[1721022689102,0.548278,63043.0,63029.0,1.219369]
[1721022689103,0.12,63029.0,63026.0,0.4863143]
[1721022689302,0.2324,63027.0,63026.0,0.4863143]
[1721022689627,0.2324,63027.0,63020.0,0.642811]
[1721022690676,0.2324,63027.0,63026.0,0.014]
[1721022691287,0.2324,63027.0,63020.0,0.642811]
[1721022691491,0.2324,63033.0,63020.0,0.514]
[1721022691721,0.04740919,63045.0,63030.0,0.0615]
[1721022691722,0.2324,63039.0,63030.0,0.0615]
[1721022691919,0.1,63044.0,63031.0,0.00317261]
[1721022692097,0.142758,63044.0,63035.0,0.142776]
[1721022692464,0.0166091,63043.0,63037.0,0.218571]
[1721022693306,0.0166091,63043.0,63037.0,0.0758]
[1721022693515,0.0166091,63043.0,63037.0,0.78002482]
[1721022693649,0.0166091,63043.0,63042.0,0.142761]
[1721022693852,0.0166091,63043.0,63042.0,0.428284]
[1721022694047,0.01022563,63046.0,63043.0,0.142757]
[1721022694235,0.0166076,63051.0,63043.0,0.142757]
[1721022694431,0.0166076,63051.0,63041.0,0.142763]
[1721022694692,0.0166076,63051.0,63037.0,0.5758]
[1721022694693,0.2324,63047.0,63037.0,0.5758]
[1721022694837,0.375151,63047.0,63042.0,0.01081201]
[1721022695038,0.375151,63047.0,63038.0,0.142769]
[1721022695039,0.2324,63047.0,63038.0,0.142769]
[1721022695277,0.2324,63047.0,63043.0,0.01080675]
[1721022695478,0.2324,63047.0,63043.0,0.144758]
[1721022695720,0.2324,63047.0,63044.0,0.01080148]
[1721022695882,0.2324,63047.0,63044.0,0.15355648]
[1721022696105,0.08105238,63045.0,63044.0,0.01080148]
[1721022696322,0.0606,63045.0,63042.0,0.013]
[1721022696532,0.203356,63045.0,63042.0,0.013]
[1721022696737,0.203356,63045.0,63043.0,0.0167888]
[1721022696955,0.375151,63047.0,63043.0,0.006]
[1721022697160,0.495151,63047.0,63043.0,0.006]
[1721022697360,0.791028,63044.0,63043.0,0.006]
[1721022697587,0.996685,63044.0,63043.0,0.006]
[1721022697757,0.142782,63033.0,63027.0,0.00306353]
[1721022698101,0.2324,63032.0,63027.0,0.00306353]
[1721022698278,0.2324,63032.0,63023.0,0.142804]
[1721022698881,0.2324,63032.0,63019.0,0.285627]
[1721022699071,0.375185,63032.0,63022.0,0.142806]
[1721022699278,0.375185,63032.0,63026.0,0.5]
[1721022699478,0.2324,63032.0,63026.0,0.5]
[1721022699688,0.2324,63032.0,63026.0,0.642797]
[1721022699880,0.2324,63032.0,63027.0,0.014]
[1721022700386,0.405509,63046.0,63028.0,0.08105238]
[1721022700551,0.23244,63050.0,63035.0,0.36660638]
[1721022700750,0.23244,63050.0,63041.0,0.285528]
[1721022700987,0.23244,63050.0,63042.0,0.14276]
[1721022701151,0.375183,63050.0,63040.0,0.142765]
[1721022701391,0.23244,63050.0,63040.0,0.285532]
[1721022701605,0.00083,63044.0,63043.0,0.928278]
[1721022701806,0.00083,63044.0,63043.0,1.213797]
[1721022701930,0.00083,63044.0,63043.0,1.499316]
[1721022703345,0.00183,63044.0,63043.0,1.513316]
[1721022703998,0.00183,63044.0,63043.0,1.527316]
[1721022704506,0.00183,63044.0,63043.0,1.513316]
[1721022704865,0.00083,63044.0,63043.0,1.513316]
[1721022705248,0.00063,63044.0,63043.0,1.241797]
[1721022707220,0.00063,63044.0,63043.0,1.72836838]
[1721022707434,0.00063,63044.0,63043.0,1.633316]
[1721022707827,0.00063,63044.0,63043.0,1.027316]
[1721022708001,0.00063,63044.0,63043.0,0.028]
[1721022708203,0.00063,63044.0,63043.0,0.014]
[1721022708204,0.143387,63044.0,63043.0,0.014]
[1721022708425,0.00063,63044.0,63043.0,0.014]
[1721022708625,0.00063,63044.0,63043.0,0.028]
[1721022708829,0.00063,63044.0,63043.0,0.014]
[1721022709410,0.142777,63035.0,63034.0,0.000913]
[1721022710135,0.713887,63035.0,63034.0,0.000913]
[1721022710335,0.999787,63035.0,63034.0,0.000913]
[1721022711572,1.099787,63035.0,63034.0,0.000913]
[1721022711779,0.999787,63035.0,63034.0,0.000913]
[1721022711984,1.100787,63035.0,63034.0,0.000913]
[1721022712184,0.243777,63035.0,63034.0,0.000913]
[1721022712387,0.649332,63035.0,63034.0,0.000913]
[1721022712585,0.528332,63035.0,63034.0,0.000913]
[1721022713635,1.033887,63035.0,63034.0,0.000913]
[1721022713781,1.033537,63035.0,63034.0,0.000913]
[1721022714155,0.628982,63035.0,63034.0,0.000913]
[1721022714478,0.627982,63035.0,63034.0,0.000913]
[1721022714679,0.527982,63035.0,63034.0,0.000913]
[1721022714878,0.628982,63035.0,63034.0,0.000913]
[1721022715293,0.627982,63035.0,63034.0,0.000913]
[1721022715705,0.628982,63035.0,63034.0,0.000913]
[1721022716114,0.528982,63035.0,63034.0,0.000913]
[1721022716298,0.628982,63035.0,63034.0,0.000913]
[1721022716698,0.748982,63035.0,63034.0,0.000913]
[1721022717706,0.76459339,63035.0,63034.0,0.000913]
[1721022718354,0.66459339,63035.0,63034.0,0.000913]
[1721022718557,0.76459339,63035.0,63034.0,0.000913]
[1721022718754,0.66559339,63035.0,63034.0,0.000913]
[1721022718954,0.77572378,63035.0,63034.0,0.000913]
[1721022719275,0.67572378,63035.0,63034.0,0.000913]
[1721022719480,0.77572378,63035.0,63034.0,0.000913]
[1721022720243,0.67572378,63035.0,63034.0,0.000913]
[1721022720462,0.77572378,63035.0,63034.0,0.000913]
[1721022720973,0.12,63027.0,63026.0,0.00306353]
[1721022721171,0.2324,63027.0,63021.0,0.142808]
[1721022721372,0.12,63029.0,63021.0,0.142808]
[1721022721373,0.2324,63022.0,63021.0,0.142808]
[1721022722073,0.2324,63022.0,63015.0,0.009152]
[1721022722272,0.2324,63016.0,63015.0,0.009152]
[1721022722528,0.2322,63016.0,63015.0,0.009152]
[1721022723686,0.2322,63016.0,63015.0,0.023152]
[1721022723887,0.37502,63016.0,63015.0,0.023152]
[1721022724097,0.47502,63016.0,63015.0,0.023152]
[1721022724552,0.880661,63016.0,63015.0,0.023152]
[1721022724710,0.880701,63016.0,63015.0,0.023152]
[1721022724910,0.880701,63016.0,63015.0,0.037152]
[1721022725111,0.880701,63016.0,63015.0,0.023152]
[1721022725432,0.942901,63016.0,63015.0,0.019152]
[1721022725700,0.942901,63016.0,63015.0,0.021152]
[1721022725851,0.942901,63016.0,63015.0,0.011152]
[1721022726240,1.328542,63016.0,63015.0,0.013152]
[1721022726645,1.614183,63016.0,63015.0,0.013152]
[1721022726883,0.14284,63008.0,62999.0,0.5516884]
[1721022727093,0.2324,63004.0,62999.0,0.5516884]
[1721022727399,0.375248,63004.0,62997.0,0.08105238]
[1721022728405,1.06764,63004.0,63003.0,0.014913]
[1721022728583,0.101,63004.0,63003.0,0.014913]
[1721022729023,0.102,63004.0,63003.0,0.028913]
[1721022729425,0.101,63004.0,63003.0,0.014913]
[1721022729626,0.001,63004.0,63003.0,0.014913]
[1721022729830,0.001,63004.0,63003.0,0.016913]
[1721022729831,0.183,63004.0,63003.0,0.016913]
[1721022730008,0.591544,63004.0,63003.0,0.014913]
[1721022730382,0.1,63004.0,63003.0,0.000913]
[1721022730595,0.25325097,63004.0,63003.0,0.000913]
[1721022730769,0.25325097,63004.0,63003.0,0.002913]
[1721022731147,0.25325097,63004.0,63003.0,0.000913]
[1721022731325,0.25329097,63004.0,63003.0,0.000913]
[1721022731527,0.25329097,63004.0,63003.0,0.003913]
[1721022732187,0.25429097,63004.0,63003.0,0.010913]
[1721022732537,0.25329097,63004.0,63003.0,0.003913]
[1721022732736,0.25329097,63004.0,63003.0,0.007913]
[1721022732935,0.25329097,63004.0,62993.0,0.00285359]
[1721022732936,0.362859,62999.0,62993.0,0.00285359]
[1721022733200,0.362859,62999.0,62985.0,0.142889]
[1721022733201,0.880977,62999.0,62985.0,0.22394138]
[1721022733384,1.166695,62999.0,62985.0,0.22394138]
[1721022733613,1.266695,62999.0,62985.0,0.22394138]
[1721022733953,0.595259,62999.0,62987.0,0.5]
[1721022734175,0.595259,62999.0,62992.0,0.28575]
[1721022734176,0.3324,62999.0,62992.0,0.28575]
[1721022734569,0.3324,62999.0,62989.0,0.00205255]
[1721022734764,0.3324,62999.0,62998.0,0.018152]
[1721022734765,0.576259,62999.0,62998.0,0.018152]
[1721022734963,0.861977,62999.0,62998.0,0.018152]
[1721022735165,0.860977,62999.0,62998.0,0.009152]
[1721022735351,0.861017,62999.0,62998.0,0.009152]
[1721022735553,0.863017,62999.0,62998.0,0.028152]
[1721022735913,0.33344,62999.0,62998.0,0.018152]
[1721022736266,0.33444,62999.0,62998.0,0.028152]
[1721022736472,0.883017,62999.0,62998.0,0.028152]
[1721022736673,1.168735,62999.0,62998.0,0.028152]
[1721022737044,1.167735,62999.0,62998.0,0.019152]
[1721022737239,0.883017,62999.0,62998.0,0.028152]
[1721022737817,0.882017,62999.0,62998.0,0.018152]
[1721022738607,0.883017,62999.0,62998.0,0.028152]
[1721022739226,1.269735,62999.0,62998.0,0.038152]
[1721022739813,1.149735,62999.0,62998.0,0.038152]
[1721022740312,0.864017,62999.0,62998.0,0.038152]
[1721022740510,0.478299,62999.0,62998.0,0.038152]
[1721022741576,0.33524901,62999.0,62998.0,0.038152]
[1721022741831,0.478299,62999.0,62998.0,0.038152]
[1721022743508,0.33544,62999.0,62998.0,0.038152]
[1721022743716,0.23544,62999.0,62998.0,0.038152]
[1721022743918,0.00304,62999.0,62998.0,1.033236]
[1721022745286,0.00304,62999.0,62998.0,0.247513]
[1721022745570,4e-05,62999.0,62998.0,0.218513]
[1721022745771,0.00104,62999.0,62998.0,0.232513]
[1721022745946,0.00104,62999.0,62998.0,0.245513]
[1721022745947,0.00204,62999.0,62998.0,0.245513]
[1721022746104,0.00204,62999.0,62998.0,1.30702253]
[1721022746319,0.00104,62999.0,62998.0,1.30702253]
[1721022746705,0.00104,62999.0,62998.0,1.303959]
[1721022747120,4e-05,62999.0,62998.0,1.289959]
[1721022747322,4e-05,62999.0,62998.0,1.012236]
[1721022747544,4e-05,62999.0,62998.0,1.021236]
[1721022747945,4e-05,62999.0,62998.0,1.012236]
[1721022748110,4e-05,62999.0,62998.0,1.018236]
[1721022748310,4e-05,62999.0,62998.0,1.030236]
[1721022748564,4e-05,62999.0,62998.0,1.016236]
[1721022749891,4e-05,62999.0,62998.0,1.658582]
[1721022750235,4e-05,62999.0,62998.0,1.790582]
[1721022750434,4e-05,62999.0,62998.0,1.670582]
[1721022750632,4e-05,62999.0,62998.0,1.778582]
[1721022751052,4e-05,62999.0,62998.0,1.791582]
[1721022751259,4e-05,62999.0,62998.0,1.805582]
[1721022751547,4e-05,63004.0,63003.0,1.46035]
[1721022751753,4e-05,63004.0,63003.0,2.07523278]
[1721022752101,4e-05,63004.0,63003.0,2.29174879]
[1721022752457,4e-05,63004.0,63003.0,2.2798804]
[1721022752663,4e-05,63004.0,63003.0,2.41174914]
[1721022752859,4e-05,63004.0,63003.0,2.2798804]
[1721022753398,4e-05,63004.0,63003.0,2.2938804]
[1721022753787,4e-05,63004.0,63003.0,2.3078804]
[1721022754311,4e-05,63004.0,63003.0,2.1738804]
[1721022754666,4e-05,63004.0,63003.0,2.1878804]
[1721022755241,4e-05,63004.0,63003.0,1.6881804]
[1721022755448,4e-05,63004.0,63003.0,1.4024804]
[1721022755653,4e-05,63004.0,63003.0,1.4164804]
[1721022756031,4e-05,63004.0,63003.0,0.88265]
[1721022756415,4e-05,63004.0,63003.0,0.58295]
[1721022757132,4e-05,63004.0,63003.0,0.59695]
[1721022758751,4e-05,63004.0,63003.0,0.108]
[1721022759532,4e-05,63004.0,63003.0,0.53655]
[1721022759819,4e-05,63004.0,63003.0,0.82225]
[1721022760259,4e-05,63004.0,63003.0,0.028]
[1721022761259,0.12,63009.0,63003.0,0.014]
[1721022761462,0.262839,63008.0,63003.0,0.028]
[1721022761939,0.262839,63008.0,63003.0,0.014]
[1721022762140,0.01034161,63010.0,63003.0,0.014]
[1721022762141,0.262848,63004.0,63003.0,0.014]
[1721022762340,0.549544,63004.0,63003.0,0.028]
[1721022762541,0.99854,63004.0,63003.0,0.028]
[1721022762784,0.99754,63004.0,63003.0,0.014]
[1721022763100,0.99754,63004.0,63003.0,0.028]
[1721022763473,0.1,63004.0,63000.0,0.142856]
[1721022763660,0.1,63004.0,62998.0,0.009152]
[1721022763661,0.1,63006.0,63003.0,0.014]
[1721022763784,0.001,63004.0,63003.0,0.028]
[1721022763988,0.001,63004.0,63003.0,0.014]
[1721022764444,0.002,63004.0,63003.0,0.021]
[1721022764853,0.002,63004.0,63003.0,0.163]
[1721022765572,0.01289324,63004.0,63003.0,0.029]
[1721022765866,0.01089324,63004.0,63003.0,0.007]
[1721022766230,0.00989324,63004.0,63000.0,0.142856]
[1721022766435,0.00989324,63003.0,62998.0,0.009152]
[1721022766657,0.001,63004.0,62998.0,0.009152]
[1721022766833,0.00989331,63003.0,62998.0,0.152012]
[1721022767141,0.00989331,63003.0,63002.0,0.142852]
[1721022767370,0.01845219,63004.0,63003.0,0.15085]
[1721022767570,0.01945219,63004.0,63003.0,0.008]
[1721022768296,0.01945219,63004.0,63003.0,0.43655]
[1721022768516,0.02934497,63004.0,63003.0,0.15085]
[1721022768719,0.02734497,63004.0,63003.0,0.14285]
[1721022769052,0.02834497,63004.0,63003.0,0.56705]
[1721022769617,0.02834497,63004.0,62998.0,0.009152]
[1721022769827,0.01945219,63004.0,63003.0,0.012]
[1721022769961,0.01945219,63004.0,63003.0,0.011]
[1721022769962,0.02934524,63004.0,63003.0,0.011]
[1721022770404,0.02834524,63004.0,63003.0,0.011]
[1721022770579,0.02734524,63004.0,62999.0,0.142858]
[1721022770780,0.00989305,63003.0,62999.0,0.142858]
[1721022771435,0.01745219,63004.0,62999.0,0.142858]
[1721022771436,0.00989301,63002.0,62999.0,0.142858]